bitfinex/quotes_ETHUSD_20230103
["timestamp","ask_amount","ask_price","bid_price","bid_amount"]
[1672773648928,10.00073966,1209.1,1209.0,43.12426771]
[1672773650105,10.00073966,1209.1,1209.0,43.29247422]
[1672773651136,5.88416778,1209.1,1209.0,43.29247422]
[1672773652140,2.78939184,1209.1,1209.0,43.29247422]
[1672773652451,2.72339184,1209.1,1209.0,43.29247422]
[1672773652839,2.72339184,1209.1,1209.0,39.45311567]
[1672773653931,2.72339184,1209.1,1209.0,46.19391825]
[1672773654121,4.58330797,1209.1,1209.0,46.19391825]
[1672773654335,3.34247556,1209.1,1209.0,62.29404013]
[1672773654764,1.48255943,1209.1,1209.0,63.31045058]
[1672773655710,1.48255943,1209.1,1209.0,63.8056223]
[1672773659136,0.24258072,1209.1,1209.0,63.8056223]
[1672773661180,1.48255943,1209.1,1209.0,63.8056223]
[1672773661878,0.2388118,1209.1,1209.0,63.8056223]
[1672773662100,1.47879051,1209.1,1209.0,63.8056223]
[1672773662399,0.2388118,1209.1,1209.0,63.8056223]
[1672773663050,0.2388118,1209.1,1209.0,62.78921185]
[1672773669697,3.16589484,1209.3,1209.0,62.78921185]
[1672773670009,3.09989484,1209.3,1209.2,59.75364]
[1672773670164,3.09989484,1209.3,1209.2,78.11698032]
[1672773670377,3.09989484,1209.3,1209.2,74.50392175]
[1672773670632,3.09989484,1209.3,1209.2,76.55192175]
[1672773670848,3.09989484,1209.3,1209.2,80.66849363]
[1672773671916,1.23997871,1209.3,1209.2,80.66849363]
[1672773672128,1.23997871,1209.3,1209.2,69.66849363]
[1672773672316,1.23997871,1209.3,1209.2,65.55192175]
[1672773673395,1.23997871,1209.3,1209.2,65.58074424]
[1672773674173,3.09989484,1209.3,1209.2,65.58074424]
[1672773675015,3.09989484,1209.3,1209.2,69.69731612]
[1672773675230,3.09989484,1209.3,1209.2,65.58074424]
[1672773675491,1.23997871,1209.3,1209.2,65.58074424]
[1672773676281,1.23997871,1209.3,1209.2,69.69731612]
[1672773676928,1.23997871,1209.3,1209.2,65.58074424]
[1672773677277,1.23997871,1209.3,1209.2,69.69731612]
[1672773678382,3.9189249,1209.4,1209.2,69.69731612]
[1672773678709,3.8529249,1209.4,1209.3,58.73179302]
[1672773678920,3.8529249,1209.4,1209.3,58.79779302]
[1672773679130,3.8529249,1209.4,1209.3,53.79296474]
[1672773679465,3.8529249,1209.4,1209.3,53.8012206]
[1672773680013,3.8529249,1209.4,1209.3,64.8012206]
[1672773681114,3.8549249,1209.4,1209.3,64.7992206]
[1672773681316,2.61294619,1209.4,1209.3,64.8012206]
[1672773681570,5.09375731,1209.4,1209.3,64.8012206]
[1672773681756,5.15975731,1209.4,1209.3,64.8012206]
[1672773684084,5.15975731,1209.4,1209.3,64.7992206]
[1672773684085,2.67894619,1209.4,1209.3,64.7992206]
[1672773684330,2.61294619,1209.4,1209.3,64.8012206]
[1672773685270,5.09375731,1209.4,1209.3,64.8012206]
[1672773685482,5.15975731,1209.4,1209.3,62.7572206]
[1672773686430,5.15975731,1209.4,1209.3,58.64064872]
[1672773686617,3.29984118,1209.4,1209.3,62.7572206]
[1672773686859,3.23384118,1209.4,1209.3,62.7572206]
[1672773687784,5.09150646,1209.4,1209.3,62.7572206]
[1672773687997,5.15750646,1209.4,1209.3,62.7572206]
[1672773689921,3.29984118,1209.4,1209.3,62.7572206]
[1672773690078,6.32861712,1209.4,1209.3,62.7572206]
[1672773690281,3.29670518,1209.4,1209.3,62.7572206]
[1672773690497,3.23070518,1209.4,1209.3,62.7572206]
[1672773690732,6.32548112,1209.4,1209.3,62.7572206]
[1672773690965,3.29670518,1209.4,1209.3,62.7572206]
[1672773691291,5.0890076,1209.4,1209.3,62.7572206]
[1672773691610,6.39148112,1209.4,1209.3,62.7572206]
[1672773691925,5.15560312,1209.4,1209.3,62.7572206]
[1672773693792,3.29670518,1209.4,1209.3,62.7572206]
[1672773694004,3.23070518,1209.4,1209.3,62.7572206]
[1672773694398,5.09042678,1209.4,1209.3,62.7572206]
[1672773694610,5.15642678,1209.4,1209.3,62.7572206]
[1672773695816,5.15649857,1209.4,1209.3,62.7572206]
[1672773696508,5.15643792,1209.4,1209.3,62.7572206]
[1672773696867,3.29670518,1209.4,1209.3,62.7572206]
[1672773697083,3.23070518,1209.4,1209.3,62.7572206]
[1672773698610,6.32548112,1209.4,1209.3,62.7572206]
[1672773698812,6.39148112,1209.4,1209.3,62.7572206]
[1672773700275,3.913806,1209.4,1209.3,62.7572206]
[1672773700487,3.913806,1209.4,1209.3,58.64064872]
[1672773700488,3.847806,1209.4,1209.3,58.64064872]
[1672773701331,3.847806,1209.4,1209.3,62.7572206]
[1672773701540,3.847806,1209.4,1209.3,62.75445189]
[1672773703034,4.07996294,1209.4,1209.3,62.75445189]
[1672773706790,6.56086019,1209.4,1209.3,62.75445189]
[1672773707002,6.62686019,1209.4,1209.3,62.75445189]
[1672773707778,4.14596294,1209.4,1209.3,62.75445189]
[1672773707966,4.07996294,1209.4,1209.3,62.75445189]
[1672773708639,4.07605621,1209.4,1209.3,62.75445189]
[1672773712064,6.55746511,1209.4,1209.3,62.75445189]
[1672773712412,6.62346511,1209.4,1209.3,69.93707933]
[1672773712787,6.62351755,1209.4,1209.3,69.93707933]
[1672773712991,4.14205621,1209.4,1209.3,69.93707933]
[1672773713211,4.07605621,1209.4,1209.3,69.93707933]
[1672773715243,6.55756128,1209.4,1209.3,69.93707933]
[1672773715564,6.62356128,1209.4,1209.3,69.93707933]
[1672773718455,3.52878534,1209.4,1209.3,69.93707933]
[1672773718760,5.32561811,1209.4,1209.3,71.99307933]
[1672773718950,5.38961811,1209.4,1209.3,71.99507933]
[1672773720633,2.90811304,1209.4,1209.3,71.99507933]
[1672773720848,2.84211304,1209.4,1209.3,71.99507933]
[1672773721433,5.32361811,1209.4,1209.3,71.99507933]
[1672773721644,5.38961811,1209.4,1209.3,71.99507933]
[1672773724058,5.38961811,1209.4,1209.3,52.83136189]
[1672773724059,3.52878534,1209.4,1209.3,52.83136189]
[1672773724327,6.55756128,1209.4,1209.3,52.83136189]
[1672773724582,6.62356128,1209.4,1209.3,52.83136189]
[1672773725703,6.62356128,1209.4,1209.3,62.75445189]
[1672773726542,3.52878534,1209.4,1209.3,62.75445189]
[1672773726855,3.46278534,1209.4,1209.3,69.93707933]
[1672773727239,6.55756128,1209.4,1209.3,69.93707933]
[1672773727466,3.52878534,1209.4,1209.3,69.93707933]
[1672773727799,10.67413316,1209.4,1209.3,52.83136189]
[1672773728016,10.74013316,1209.4,1209.3,52.83136189]
[1672773728246,8.25862809,1209.4,1209.3,52.83136189]
[1672773728403,8.25862809,1209.4,1209.3,48.71479001]
[1672773729333,11.9757803,1209.4,1209.3,38.79170001]
[1672773729602,8.88100436,1209.4,1209.3,38.79170001]
[1672773730342,5.16385215,1209.4,1209.3,48.71479001]
[1672773730692,8.26511607,1209.4,1209.3,48.71479001]
[1672773731160,8.26511607,1209.4,1209.3,48.71086104]
[1672773737377,10.14231143,1209.4,1209.3,38.55777104]
[1672773737525,10.14231143,1209.4,1209.3,38.55577104]
[1672773737739,10.14231143,1209.4,1209.3,38.55777104]
[1672773738370,10.14231143,1209.4,1209.3,38.55577104]
[1672773738578,10.14231143,1209.4,1209.3,38.55777104]
[1672773742727,20.57425083,1209.4,1209.3,3.56942758]
[1672773742939,10.65198083,1209.4,1209.3,0.00825586]
[1672773743151,6.32515922,1209.4,1209.3,0.00825586]
[1672773743400,16.15198083,1209.4,1209.3,0.00825586]
[1672773744165,50.8123988,1209.4,1209.3,0.00825586]
[1672773744296,50.65247188,1209.4,1209.3,0.00430071]
[1672773744508,50.65241338,1209.4,1209.3,0.00853408]
[1672773745080,46.31866922,1209.4,1209.3,0.00853408]
[1672773745236,36.39639922,1209.4,1209.3,0.00853408]
[1672773745452,36.39639922,1209.4,1209.3,0.00430071]
[1672773745701,46.31866922,1209.4,1209.3,0.00430071]
[1672773745907,5.5,1209.3,1209.0,0.066]
[1672773746119,5.5,1209.3,1208.9,0.00583612]
[1672773746120,24.1821839,1209.1,1208.9,0.00583612]
[1672773746331,35.65144292,1209.0,1208.9,0.00583612]
[1672773746554,39.83349778,1209.0,1208.9,0.00583612]
[1672773746768,37.36105579,1209.0,1208.9,0.00583612]
[1672773746917,43.30499456,1209.0,1208.9,0.00583612]
[1672773748076,33.37944456,1209.0,1208.9,0.00583612]
[1672773748284,23.45389456,1209.0,1208.9,0.00583612]
[1672773748544,23.45389456,1209.0,1208.9,0.01301786]
[1672773748865,20.15803607,1209.0,1208.9,0.01301786]
[1672773749603,20.15803607,1209.0,1208.9,9.93938786]
[1672773749759,20.15803607,1209.0,1208.9,10.00538786]
[1672773750181,20.15803607,1209.0,1208.9,0.07901786]
[1672773750386,20.15803607,1209.0,1208.9,0.01301786]
[1672773751287,20.15803607,1209.0,1208.9,9.93938786]
[1672773751453,13.42003495,1209.0,1208.9,29.85812786]
[1672773751664,9.95070826,1209.0,1208.9,19.93175786]
[1672773751880,7.26954186,1209.0,1208.9,24.080619]
[1672773752233,5.41691644,1209.0,1208.9,61.93714016]
[1672773752401,0.066,1209.0,1208.9,61.93714016]
[1672773752607,7.26954186,1209.1,1208.9,61.93714016]
[1672773752814,7.26954186,1209.1,1209.0,32.77665]
[1672773753023,9.63626034,1209.1,1209.0,32.84265]
[1672773753448,9.63626034,1209.1,1209.0,22.92529091]
[1672773754614,9.63626034,1209.1,1209.0,27.07415205]
[1672773754853,7.26954186,1209.1,1209.0,36.99970205]
[1672773755628,7.26954186,1209.1,1209.0,27.07415205]
[1672773755995,7.26954186,1209.1,1209.0,36.99970205]
[1672773756626,7.26954186,1209.1,1209.0,27.07415205]
[1672773759253,7.26954186,1209.1,1209.0,36.99970205]
[1672773759460,5.41691644,1209.1,1209.0,36.99970205]
[1672773759674,7.26954186,1209.1,1209.0,36.99970205]
[1672773761261,6.0351973,1209.1,1209.0,27.07415205]
[1672773762856,7.26971015,1209.1,1209.0,27.07415205]
[1672773765767,9.43064546,1209.1,1209.0,17.14860205]
[1672773766345,9.43064546,1209.1,1209.0,27.07415205]
[1672773767177,8.19613261,1209.1,1209.0,27.07415205]
[1672773768550,10.66849164,1209.1,1209.0,27.07415205]
[1672773768915,10.66849164,1209.1,1209.0,36.99625418]
[1672773769333,10.66849164,1209.1,1209.0,27.07070418]
[1672773770127,8.81586622,1209.1,1209.0,17.14515418]
[1672773771120,11.90635013,1209.1,1209.0,17.14515418]
[1672773771386,8.81586622,1209.1,1209.0,27.07070418]
[1672773771750,8.81586622,1209.1,1209.0,17.14515418]
[1672773772298,11.90635013,1209.1,1209.0,27.07070418]
[1672773773650,8.81586622,1209.1,1209.0,27.07070418]
[1672773774434,11.90635013,1209.1,1209.0,27.07070418]
[1672773774649,8.81586622,1209.1,1209.0,27.07070418]
[1672773775017,11.90635013,1209.1,1209.0,27.07070418]
[1672773775795,9.4339911,1209.1,1209.0,27.07070418]
[1672773776121,7.27305579,1209.1,1209.0,27.07070418]
[1672773776272,9.7468143,1209.1,1209.0,27.07070418]
[1672773777326,7.27305579,1209.1,1209.0,27.07070418]
[1672773780898,10.98689988,1209.1,1209.0,36.99625418]
[1672773781112,7.89641597,1209.1,1209.0,36.99625418]
[1672773782577,7.89641597,1209.1,1209.0,56.99647065]
[1672773782578,3.16491153,1209.1,1209.0,56.99647065]
[1672773782788,5.57811111,1209.1,1209.0,70.77964237]
[1672773782999,5.64411111,1209.1,1209.0,70.77964237]
[1672773784675,5.64411111,1209.1,1209.0,66.52876263]
[1672773785608,7.28148341,1209.1,1209.0,56.60321263]
[1672773790000,9.76097984,1209.1,1209.0,56.60321263]
[1672773790219,7.28148341,1209.1,1209.0,56.60321263]
[1672773790619,7.28148341,1209.1,1209.0,66.52876263]
[1672773790979,7.28148341,1209.1,1209.0,54.54521263]
[1672773793122,7.89641597,1209.1,1209.0,50.7794259]
[1672773793350,9.11932996,1209.1,1209.0,7.44676597]
[1672773793579,9.11932996,1209.1,1209.0,7.21676597]
[1672773794295,5.40548587,1209.1,1209.0,7.21676597]
[1672773794649,14.62457029,1209.1,1209.0,7.21676597]
[1672773794800,14.62471417,1209.1,1209.0,7.21676597]
[1672773795008,14.62482918,1209.1,1209.0,7.21676597]
[1672773796913,14.62446895,1209.1,1209.0,7.21676597]
[1672773797120,25.16293977,1209.1,1209.0,3.06790483]
[1672773797328,25.16293977,1209.1,1209.0,0.00819091]
[1672773799146,25.16293977,1209.1,1209.0,3.00819091]
[1672773801375,35.08766977,1209.1,1209.0,3.00819091]
[1672773801592,35.08766977,1209.1,1209.0,0.00819091]
[1672773801761,25.16293977,1209.1,1209.0,3.00819091]
[1672773801981,25.16293977,1209.1,1209.0,0.00819091]
[1672773802530,25.12293977,1209.1,1209.0,0.00819091]
[1672773802739,25.12493977,1209.1,1209.0,0.00819091]
[1672773803846,44.97439977,1209.1,1209.0,0.00819091]
[1672773803966,25.12493977,1209.1,1209.0,0.00819091]
[1672773804450,20.79221587,1209.1,1209.0,0.00819091]
[1672773805265,10.86748587,1209.1,1209.0,0.00819091]
[1672773805600,14.58334028,1209.1,1209.0,0.00819091]
[1672773806129,14.58334028,1209.1,1209.0,29.78484091]
[1672773806443,14.58334028,1209.1,1209.0,22.92529091]
[1672773807535,14.58323506,1209.1,1209.0,12.99974091]
[1672773807690,10.86748587,1209.1,1209.0,3.07419091]
[1672773807881,10.86748587,1209.1,1209.0,3.00819091]
[1672773808066,15.20020977,1209.1,1209.0,12.93374091]
[1672773808401,15.20020977,1209.1,1209.0,12.99974091]
[1672773808589,14.58293631,1209.1,1209.0,12.99974091]
[1672773809374,14.58300409,1209.1,1209.0,3.07419091]
[1672773809592,15.20020977,1209.1,1209.0,3.00819091]
[1672773810910,25.12493977,1209.1,1209.0,0.00819091]
[1672773811120,35.04966977,1209.1,1209.0,0.00819091]
[1672773811335,25.12493977,1209.1,1209.0,0.00819091]
[1672773812409,14.58274215,1209.1,1209.0,0.00819091]
[1672773812607,14.58274215,1209.1,1209.0,19.85929091]
[1672773812818,9.08274215,1209.1,1209.0,12.99974091]
[1672773813427,14.58274215,1209.1,1209.0,12.99974091]
[1672773813689,14.58274215,1209.1,1209.0,22.92529091]
[1672773815527,14.58274215,1209.1,1209.0,22.92285463]
[1672773815896,9.08274215,1209.1,1209.0,22.92285463]
[1672773817651,7.85982816,1209.1,1209.0,12.99730463]
[1672773818240,7.85982816,1209.1,1209.0,3.07175463]
[1672773818414,7.85982816,1209.1,1209.0,3.00575463]
[1672773818832,13.35982816,1209.1,1209.0,3.00575463]
[1672773823610,23.90202578,1209.1,1209.0,3.00575463]
[1672773823939,48.218077,1209.1,1209.0,0.00575463]
[1672773824751,48.218077,1209.1,1209.0,0.00292371]
[1672773825384,48.21507551,1209.1,1209.0,0.00292371]
[1672773825563,48.21507551,1209.1,1209.0,0.00577618]
[1672773827726,18.44088551,1209.1,1209.0,0.00577618]
[1672773828282,28.36561551,1209.1,1209.0,0.00577618]
[1672773831247,38.29034551,1209.1,1209.0,0.00577618]
[1672773831878,39.07565171,1209.1,1209.0,0.00577618]
[1672773832127,39.07565171,1209.1,1209.0,0.00292665]
[1672773832282,62.61925124,1209.1,1209.0,0.00292665]
[1672773832493,62.61925124,1209.1,1209.0,0.00556079]
[1672773833854,67.61925124,1209.1,1209.0,0.00556079]
[1672773834396,2.85343921,1209.0,1208.9,0.00583612]
[1672773834616,60.63864912,1209.0,1208.9,0.00583612]
[1672773834841,60.66364763,1209.0,1208.9,0.00583612]
[1672773835794,58.60564763,1209.0,1208.9,0.00583612]
[1672773836339,63.60564763,1209.0,1208.9,0.00583612]
[1672773836696,63.60564763,1209.0,1208.9,0.01165319]
[1672773839273,63.60564763,1209.0,1208.9,0.00582081]
[1672773844331,58.48124867,1209.0,1208.9,0.00582081]
[1672773844481,62.81383228,1209.0,1208.9,0.00582081]
[1672773845138,52.88828228,1209.0,1208.9,0.00582081]
[1672773845767,48.55569867,1209.0,1208.9,0.00582081]
[1672773846013,52.88758806,1209.0,1208.9,0.00582081]
[1672773846229,52.88758806,1209.0,1208.9,0.00290797]
[1672773846755,52.88758806,1209.0,1208.9,0.00581655]
[1672773848004,62.81313806,1209.0,1208.9,0.00581655]
[1672773849276,52.88758806,1209.0,1208.9,0.00581655]
[1672773849492,58.48124867,1209.0,1208.9,0.00581655]
[1672773850543,52.88624234,1209.0,1208.9,0.00581655]
[1672773853054,58.48124867,1209.0,1208.9,0.00581655]
[1672773853215,58.48124867,1209.0,1208.9,0.00290564]
[1672773853754,58.48124867,1209.0,1208.9,0.00521055]
[1672773853965,48.55569867,1209.0,1208.9,0.00521055]
[1672773854163,53.68009763,1209.0,1208.9,0.00521055]
[1672773854372,48.55569867,1209.0,1208.9,0.00521055]
[1672773855212,52.88632283,1209.0,1208.9,0.00521055]
[1672773855444,58.48124867,1209.0,1208.9,0.00521055]
[1672773855646,63.60564763,1209.0,1208.9,0.00021055]
[1672773855853,67.75450877,1209.0,1208.9,0.00021055]
[1672773856059,62.94782944,1209.0,1208.7,0.00479772]
[1672773856271,16.05898904,1208.9,1208.7,0.00479772]
[1672773856483,33.89817188,1208.8,1208.7,0.00479772]
[1672773856689,39.03772641,1208.8,1208.7,0.00479772]
[1672773856935,44.65872641,1208.8,1208.7,0.00479772]
[1672773857149,48.80758755,1208.8,1208.7,0.00079772]
[1672773857337,45.73803153,1208.8,1208.7,0.00079772]
[1672773857548,62.0080706,1208.8,1208.7,0.00079772]
[1672773857757,68.14134023,1208.8,1208.7,0.00079758]
[1672773858005,67.11946118,1208.8,1208.7,0.00079758]
[1672773858160,65.0080706,1208.8,1208.7,0.00079758]
[1672773858376,71.14134023,1208.8,1208.7,0.00079758]
[1672773858650,81.06854023,1208.8,1208.5,0.00540326]
[1672773858800,5.11081464,1208.6,1208.5,3.26e-06]
[1672773859015,56.07264094,1208.6,1208.5,3.26e-06]
[1672773859662,56.07264094,1208.6,1208.5,0.00634504]
[1672773860006,60.28697481,1208.6,1208.5,0.00634504]
[1672773860154,60.28697481,1208.6,1208.4,0.00652703]
[1672773860371,11.29222596,1208.5,1208.4,0.00652703]
[1672773860757,13.67888092,1208.5,1208.4,0.00652703]
[1672773861056,12.85086715,1208.5,1208.4,9.93700703]
[1672773861273,12.22968198,1208.5,1208.4,10.00300703]
[1672773861424,7.22968198,1208.5,1208.4,10.00300703]
[1672773861641,7.22968198,1208.5,1208.4,10.50492172]
[1672773862047,7.22968198,1208.5,1208.4,0.07927]
[1672773862265,9.1460257,1208.5,1208.4,0.01327]
[1672773862589,14.6460257,1208.5,1208.4,0.01327]
[1672773862960,15.26282578,1208.5,1208.4,0.01327]
[1672773863525,45.05180578,1208.5,1208.4,0.01327]
[1672773863734,35.12214578,1208.5,1208.4,0.01327]
[1672773864419,31.41723411,1208.5,1208.4,0.01327]
[1672773864677,25.19248578,1208.5,1208.4,0.01327]
[1672773864938,45.05180578,1208.5,1208.4,0.01327]
[1672773865112,50.05180578,1208.5,1208.4,0.01327]
[1672773866628,36.41723411,1208.5,1208.4,0.01327]
[1672773866992,39.50347458,1208.5,1208.4,0.01327]
[1672773867451,39.5034643,1208.5,1208.4,0.01327]
[1672773867832,29.5738043,1208.5,1208.4,0.01327]
[1672773868096,14.6441443,1208.5,1208.4,0.01327]
[1672773868315,15.26282578,1208.5,1208.4,0.01327]
[1672773868474,34.50352058,1208.5,1208.4,0.01327]
[1672773869998,45.05180578,1208.5,1208.4,0.01327]
[1672773870310,25.19248578,1208.5,1208.4,0.01327]
[1672773870877,21.48757411,1208.5,1208.4,0.01327]
[1672773871413,24.57416949,1208.5,1208.4,0.01327]
[1672773871875,21.48757411,1208.5,1208.4,0.01327]
[1672773873198,24.57502274,1208.5,1208.4,0.01327]
[1672773873609,34.50468274,1208.5,1208.4,0.01327]
[1672773873872,31.41723411,1208.5,1208.4,0.01327]
[1672773874043,14.64518197,1208.5,1208.4,0.01327]
[1672773875432,45.05180578,1208.5,1208.4,0.01327]
[1672773876347,50.05180578,1208.5,1208.4,0.01327]
[1672773877088,50.32156118,1208.5,1208.4,0.01327]
[1672773878885,50.32156118,1208.5,1208.4,0.00653252]
[1672773879532,50.32156118,1208.5,1208.3,0.0135332]
[1672773879710,12.70371742,1208.4,1208.3,0.0135332]
[1672773879912,38.4805466,1208.4,1208.3,0.0135332]
[1672773880756,28.5500666,1208.4,1208.3,0.0135332]
[1672773881338,5.5,1208.3,1208.2,2.9635332]
[1672773881511,13.96406554,1208.3,1208.2,2.9635332]
[1672773881908,23.89536554,1208.3,1208.2,2.9635332]
[1672773882120,16.78658144,1208.3,1208.2,2.9635332]
[1672773882333,27.95248402,1208.3,1208.2,2.9635332]
[1672773882541,18.02118402,1208.3,1208.2,2.97028211]
[1672773884704,12.52118402,1208.3,1208.2,2.97028211]
[1672773884920,8.46424131,1208.3,1208.2,12.90241211]
[1672773885224,8.46424131,1208.3,1208.2,36.94924399]
[1672773885597,8.46424131,1208.3,1208.2,27.01711399]
[1672773888324,8.46581571,1208.3,1208.2,27.01711399]
[1672773888538,9.69866812,1208.3,1208.2,27.01711399]
[1672773889581,6.61152258,1208.3,1208.2,27.01711399]
[1672773889793,9.69866812,1208.3,1208.2,27.01711399]
[1672773890843,9.69866812,1208.3,1208.2,29.08011399]
[1672773891264,9.69866812,1208.3,1208.2,24.96354211]
[1672773892103,7.22871593,1208.3,1208.2,24.96354211]
[1672773892375,4.14157039,1208.3,1208.2,24.96354211]
[1672773892541,7.21144879,1208.3,1208.2,29.08011399]
[1672773892755,7.2364473,1208.3,1208.2,39.01224399]
[1672773893700,7.2364473,1208.3,1208.2,29.08011399]
[1672773893926,4.14157039,1208.3,1208.2,39.01224399]
[1672773894142,4.11657188,1208.3,1208.2,39.01224399]
[1672773894315,7.21408507,1208.3,1208.2,39.01224399]
[1672773894527,7.23905783,1208.3,1208.2,39.01124399]
[1672773894876,3.12248595,1208.3,1208.2,39.01124399]
[1672773895049,3.09748744,1208.3,1208.2,48.94337399]
[1672773895256,5.57563682,1208.3,1208.2,49.40786425]
[1672773895498,5.57563682,1208.3,1208.2,59.33999425]
[1672773895499,2.50314789,1208.3,1208.2,59.33999425]
[1672773895710,4.33681073,1208.3,1208.2,59.33999425]
[1672773895942,2.47814938,1208.3,1208.2,63.45299425]
[1672773896153,3.09748744,1208.3,1208.2,63.45299425]
[1672773896366,3.09748744,1208.3,1208.2,53.52086425]
[1672773896536,3.09748744,1208.3,1208.2,63.45299425]
[1672773896748,3.09748744,1208.3,1208.2,53.52086425]
[1672773897148,5.57801937,1208.3,1208.2,53.52086425]
[1672773897394,5.60301788,1208.3,1208.2,53.52086425]
[1672773898093,5.60301788,1208.3,1208.2,63.45299425]
[1672773900064,2.50553044,1208.3,1208.2,63.45299425]
[1672773900371,2.48053193,1208.3,1208.2,63.45299425]
[1672773900800,2.48053193,1208.3,1208.2,61.40199425]
[1672773900990,1.26563731,1208.4,1208.2,64.49621405]
[1672773901322,1.26563731,1208.4,1208.2,59.33999425]
[1672773901323,5.57801937,1208.3,1208.2,59.33999425]
[1672773901530,5.60301788,1208.3,1208.2,61.39099425]
[1672773902214,5.60301788,1208.3,1208.2,72.39099425]
[1672773902854,2.50553044,1208.3,1208.2,72.39099425]
[1672773903067,2.48053193,1208.3,1208.2,72.38704325]
[1672773903309,4.34052292,1208.3,1208.2,72.38704325]
[1672773908079,4.34252292,1208.3,1208.2,72.38504325]
[1672773908236,4.34052292,1208.3,1208.2,72.38704325]
[1672773908433,1.85999099,1208.3,1208.2,72.38704325]
[1672773909133,3.09935155,1208.3,1208.2,72.38704325]
[1672773910079,3.09934075,1208.3,1208.2,72.38704325]
[1672773910785,3.09922894,1208.3,1208.2,72.38704325]
[1672773913124,4.34052292,1208.3,1208.2,56.70232585]
[1672773915329,4.34052292,1208.3,1208.2,66.63445585]
[1672773916706,4.34052292,1208.3,1208.2,73.63445585]
[1672773917748,1.85999099,1208.3,1208.2,73.63445585]
[1672773918115,4.34052292,1208.3,1208.2,73.63445585]
[1672773918640,9.69459125,1208.3,1208.2,57.53475397]
[1672773918873,4.36372258,1208.3,1208.2,57.53475397]
[1672773919214,8.45528399,1208.3,1208.2,57.53475397]
[1672773919371,8.4802825,1208.3,1208.2,57.03958225]
[1672773920211,8.4802825,1208.3,1208.2,60.16528556]
[1672773920475,8.4802825,1208.3,1208.2,60.16528503]
[1672773920842,8.4802825,1208.3,1208.2,58.10328503]
[1672773921703,8.4802825,1208.3,1208.2,68.03541503]
[1672773921925,8.4802825,1208.3,1208.2,58.10328503]
[1672773922161,8.4802825,1208.3,1208.2,68.03541503]
[1672773922481,8.4802825,1208.3,1208.2,58.10328503]
[1672773922667,8.4802825,1208.3,1208.2,68.03541503]
[1672773922877,8.4802825,1208.3,1208.2,58.10328503]
[1672773923269,9.71958976,1208.3,1208.2,53.95442389]
[1672773923490,9.71717,1208.3,1208.2,53.95415669]
[1672773923685,9.71717,1208.3,1208.2,50.82872111]
[1672773924135,7.23905783,1208.3,1208.2,50.82872111]
[1672773925618,9.7177907,1208.3,1208.2,50.82872111]
[1672773925953,7.23905783,1208.3,1208.2,50.82872111]
[1672773926161,7.23905783,1208.3,1208.2,50.82654257]
[1672773927695,7.23905783,1208.3,1208.2,53.95132275]
[1672773927910,9.71801163,1208.3,1208.2,53.95132275]
[1672773929165,6.62052419,1208.3,1208.2,53.95132275]
[1672773929366,6.62052419,1208.3,1208.2,63.88345275]
[1672773929577,9.71801163,1208.3,1208.2,53.94457384]
[1672773929787,6.62052419,1208.3,1208.2,53.94457384]
[1672773930684,6.62052419,1208.3,1208.2,63.87670384]
[1672773931737,9.71801163,1208.3,1208.2,63.87670384]
[1672773933948,9.71801163,1208.3,1208.2,77.23958853]
[1672773933949,4.36429123,1208.3,1208.2,77.23958853]
[1672773934269,4.33929272,1208.3,1208.2,77.73476025]
[1672773936304,4.33957444,1208.3,1208.2,77.73476025]
[1672773936437,2.4789538,1208.3,1208.2,72.6447367]
[1672773936965,4.33957721,1208.3,1208.2,72.6447367]
[1672773940740,1.86062341,1208.3,1208.2,72.6447367]
[1672773941218,4.33957721,1208.3,1208.2,72.6447367]
[1672773941431,1.86062341,1208.3,1208.2,72.6447367]
[1672773941898,1.86062341,1208.3,1208.2,80.9486603]
[1672773943373,3.10103906,1208.3,1208.2,80.9486603]
[1672773944054,1.86062341,1208.3,1208.2,80.9486603]
[1672773944241,3.10108244,1208.3,1208.2,80.9486603]
[1672773945299,3.10108244,1208.3,1208.2,81.1786603]
[1672773945979,1.86062341,1208.3,1208.2,81.1786603]
[1672773947243,3.10080794,1208.3,1208.2,81.1786603]
[1672773949515,1.86062341,1208.3,1208.2,81.1786603]
[1672773949714,1.86062341,1208.3,1208.2,72.8747367]
[1672773950338,4.33957721,1208.3,1208.2,72.8747367]
[1672773950550,9.13252557,1208.3,1208.2,57.52321937]
[1672773950760,9.15752408,1208.3,1208.2,66.96017765]
[1672773951278,9.15752408,1208.3,1208.2,64.89817765]
[1672773951279,6.67857028,1208.3,1208.2,64.89817765]
[1672773951510,6.67857028,1208.3,1208.2,54.96604765]
[1672773951646,9.1585885,1208.3,1208.2,54.96604765]
[1672773953075,9.1585885,1208.3,1208.2,59.08261953]
[1672773954094,9.1585885,1208.3,1208.2,54.96604765]
[1672773954534,6.67857028,1208.3,1208.2,54.96604765]
[1672773954739,9.15833891,1208.3,1208.2,54.96604765]
[1672773954976,6.67857028,1208.3,1208.2,54.96604765]
[1672773955181,8.51489534,1208.3,1208.2,23.95292651]
[1672773955380,8.51489534,1208.3,1208.2,3.02079651]
[1672773955381,5.4174079,1208.3,1208.2,3.02079651]
[1672773955693,8.51698484,1208.3,1208.2,12.88692651]
[1672773955925,8.51698484,1208.3,1208.2,22.88505651]
[1672773957003,9.12231957,1208.3,1208.2,22.88505651]
[1672773958113,9.12231957,1208.3,1208.2,32.81718651]
[1672773958948,5.4174079,1208.3,1208.2,32.81718651]
[1672773959156,9.12231957,1208.3,1208.2,32.81718651]
[1672773959524,5.4174079,1208.3,1208.2,32.81718651]
[1672773960365,9.12231957,1208.3,1208.2,12.95292651]
[1672773960571,9.12231957,1208.3,1208.2,3.02079651]
[1672773960839,9.12231957,1208.3,1208.2,12.88692651]
[1672773961051,9.12231957,1208.3,1208.2,12.95292651]
[1672773961431,9.12231957,1208.3,1208.2,3.02079651]
[1672773961643,5.56623524,1208.3,1208.2,2.95479651]
[1672773962008,3.9133436,1208.3,1208.2,22.81905651]
[1672773962174,6.98597006,1208.3,1208.2,22.88505651]
[1672773962363,7.01096857,1208.3,1208.2,32.81718651]
[1672773963103,7.01096857,1208.3,1208.2,22.88505651]
[1672773966791,7.01096857,1208.3,1208.2,32.81718651]
[1672773967246,7.01096857,1208.3,1208.2,22.88505651]
[1672773967612,7.01023331,1208.3,1208.2,22.88505651]
[1672773969088,7.01023331,1208.3,1208.2,12.95292651]
[1672773969528,3.9133436,1208.3,1208.2,12.95292651]
[1672773969840,6.9849082,1208.3,1208.2,12.95292651]
[1672773970048,7.00990671,1208.3,1208.2,12.95292651]
[1672773970300,7.00990671,1208.3,1208.2,22.88505651]
[1672773974319,7.00990671,1208.3,1208.2,22.88181545]
[1672773975201,7.00990671,1208.3,1208.2,12.94968545]
[1672773975411,7.00990671,1208.3,1208.2,22.88181545]
[1672773976354,7.00990671,1208.3,1208.2,32.81394545]
[1672773976570,7.00990671,1208.3,1208.2,36.93051733]
[1672773976851,7.00990671,1208.3,1208.2,32.81394545]
[1672773977201,7.29312225,1208.3,1208.2,32.81394545]
[1672773979041,7.29312225,1208.3,1208.2,12.94968545]
[1672773980160,7.29312225,1208.3,1208.2,22.88181545]
[1672773981835,7.29312225,1208.3,1208.2,32.81394545]